[Event "*** Titled Tuesday 3|2 Blitz"]
[Site "Chess.com"]
[Date "2016.05.03"]
[Round "8"]
[White "ZEN-22"]
[Black "MbMaster"]
[Result "0-1"]
[WhiteElo "2396"]
[BlackElo "2264"]
[TimeControl "180+2"]
[EndTime "18:39:57 PDT"]
[Termination "MbMaster won by checkmate"]

1. e4 {[%clk 0:03:01.9]} 1... d5 {[%clk 0:02:58.5]} 2. exd5 {[%clk 0:03:02.7]}
2... Qxd5 {[%clk 0:02:59]} 3. Nc3 {[%clk 0:03:03.7]} 3... Qa5 {[%clk 0:02:59.5]}
4. b4 {[%clk 0:03:04.6]} 4... Qxb4 {[%clk 0:02:57.3]} 5. Rb1 {[%clk 0:03:06.1]}
5... Qd6 {[%clk 0:02:54.7]} 6. Bc4 {[%clk 0:03:06.3]} 6... c6 {[%clk 0:02:45.9]}
7. Nge2 {[%clk 0:03:06.2]} 7... Nf6 {[%clk 0:02:44.6]} 8. d4 {[%clk 0:03:07]}
8... e6 {[%clk 0:02:35.8]} 9. O-O {[%clk 0:03:04.5]} 9... Be7 {[%clk 0:02:33.1]}
10. Bf4 {[%clk 0:03:03.6]} 10... Qd8 {[%clk 0:02:32]} 11. Ng3 {[%clk 0:03:04.8]}
11... Nbd7 {[%clk 0:02:30.8]} 12. Re1 {[%clk 0:03:02.1]} 12... Nb6 {[%clk
0:02:27]} 13. Bd3 {[%clk 0:03:03]} 13... Nbd5 {[%clk 0:02:26.4]} 14. Bd2 {[%clk
0:03:03.6]} 14... Nxc3 {[%clk 0:02:24.9]} 15. Bxc3 {[%clk 0:03:04.6]} 15... Qc7
{[%clk 0:02:21.2]} 16. Bd2 {[%clk 0:03:03.5]} 16... O-O {[%clk 0:02:15.7]} 17.
Qf3 {[%clk 0:03:04.2]} 17... b6 {[%clk 0:01:59.2]} 18. Bf4 {[%clk 0:03:02.4]}
18... Qd7 {[%clk 0:01:58.1]} 19. Be5 {[%clk 0:03:00.1]} 19... Bb7 {[%clk
0:01:54.1]} 20. Nh5 {[%clk 0:02:51.1]} 20... Nxh5 {[%clk 0:01:21.8]} 21. Bxh7+
{[%clk 0:02:12.6]} 21... Kxh7 {[%clk 0:01:23.7]} 22. Qxh5+ {[%clk 0:02:13.6]}
22... Kg8 {[%clk 0:01:22.6]} 23. Bxg7 {[%clk 0:02:15.5]} 23... f5 {[%clk
0:00:36.7]} 24. Rb3 {[%clk 0:01:43.9]} 24... Bd6 {[%clk 0:00:26]} 25. Be5 {[%clk
0:01:23.2]} 25... Bxe5 {[%clk 0:00:22.5]} 26. Rxe5 {[%clk 0:01:21.6]} 26... Rf7
{[%clk 0:00:18.8]} 27. Rh3 {[%clk 0:01:15.2]} 27... Rg7 {[%clk 0:00:17.5]} 28.
Qh6 {[%clk 0:01:06.5]} 28... c5 {[%clk 0:00:16.7]} 29. Rxe6 {[%clk 0:01:02.9]}
29... Qxd4 {[%clk 0:00:09]} 30. Qh8+ {[%clk 0:00:35.5]} 30... Kf7 {[%clk
0:00:09.9]} 31. Qh5+ {[%clk 0:00:37.4]} 31... Kxe6 {[%clk 0:00:11.1]} 32. Re3+
{[%clk 0:00:38.5]} 32... Be4 {[%clk 0:00:12.3]} 33. Qh6+ {[%clk 0:00:38.8]}
33... Qf6 {[%clk 0:00:12.4]} 34. Qf4 {[%clk 0:00:39.7]} 34... Rxg2+ {[%clk
0:00:13.3]} 35. Kf1 {[%clk 0:00:40.7]} 35... Rd8 {[%clk 0:00:15]} 36. f3 {[%clk
0:00:40.2]} 36... Rxc2 {[%clk 0:00:14.3]} 37. fxe4 {[%clk 0:00:38.7]} 37... Rd1+
{[%clk 0:00:15.4]} 38. Re1 {[%clk 0:00:39.1]} 38... Rxe1+ {[%clk 0:00:16.9]} 39.
Kxe1 {[%clk 0:00:40.3]} 39... Qa1+ {[%clk 0:00:18.6]} 40. Qc1 {[%clk 0:00:40.8]}
40... Qxc1# {[%clk 0:00:19.2]} 0-1

[Event "*** Titled Tuesday 3|2 Blitz"]
[Site "Chess.com"]
[Date "2016.05.03"]
[Round "8"]
[White "Aguiar94"]
[Black "GianmarcoVaR"]
[Result "1-0"]
[WhiteElo "2384"]
[BlackElo "2324"]
[TimeControl "180+2"]
[EndTime "18:41:02 PDT"]
[Termination "Aguiar94 won by resignation"]

1. e4 {[%clk 0:03:01.9]} 1... g6 {[%clk 0:02:57.1]} 2. d4 {[%clk 0:03:01.5]}
2... Bg7 {[%clk 0:02:58.2]} 3. Nc3 {[%clk 0:03:02.1]} 3... d6 {[%clk 0:02:57]}
4. Be3 {[%clk 0:03:01.9]} 4... Nf6 {[%clk 0:02:56.8]} 5. Be2 {[%clk 0:02:59.5]}
5... O-O {[%clk 0:02:54.6]} 6. Nf3 {[%clk 0:02:50.3]} 6... Ng4 {[%clk
0:02:49.2]} 7. Bg5 {[%clk 0:02:50.2]} 7... h6 {[%clk 0:02:46.1]} 8. Bh4 {[%clk
0:02:51.2]} 8... Nc6 {[%clk 0:02:09.4]} 9. d5 {[%clk 0:02:38.4]} 9... Nb8 {[%clk
0:02:03.3]} 10. Nd2 {[%clk 0:02:30.8]} 10... Nf6 {[%clk 0:01:59.8]} 11. O-O
{[%clk 0:02:22.5]} 11... e5 {[%clk 0:02:00.2]} 12. Nc4 {[%clk 0:02:15.8]} 12...
Qe8 {[%clk 0:01:56.9]} 13. a4 {[%clk 0:01:54.4]} 13... Na6 {[%clk 0:01:25.1]}
14. Qd2 {[%clk 0:01:45]} 14... Nd7 {[%clk 0:01:17]} 15. f3 {[%clk 0:01:17.5]}
15... f5 {[%clk 0:01:08.5]} 16. exf5 {[%clk 0:01:14.8]} 16... gxf5 {[%clk
0:01:09.6]} 17. Nb5 {[%clk 0:01:03.4]} 17... Nf6 {[%clk 0:00:50.4]} 18. Na5
{[%clk 0:00:54.7]} 18... Nh5 {[%clk 0:00:23.8]} 19. Rfc1 {[%clk 0:00:29]} 19...
Qg6 {[%clk 0:00:23.2]} 20. c4 {[%clk 0:00:24.1]} 20... Nf4 {[%clk 0:00:23.4]}
21. Bf1 {[%clk 0:00:24.4]} 21... h5 {[%clk 0:00:24.7]} 22. Bf2 {[%clk
0:00:20.1]} 22... Bh6 {[%clk 0:00:23.7]} 23. Be3 {[%clk 0:00:21.2]} 23... Nh3+
{[%clk 0:00:21.4]} 24. Kh1 {[%clk 0:00:22.4]} 24... f4 {[%clk 0:00:22.5]} 25.
Bf2 {[%clk 0:00:22.2]} 25... Nxf2+ {[%clk 0:00:23.1]} 26. Qxf2 {[%clk
0:00:22.6]} 26... Bg5 {[%clk 0:00:09.9]} 27. Qd2 {[%clk 0:00:23.1]} 27... e4
{[%clk 0:00:09.3]} 28. fxe4 {[%clk 0:00:22.8]} 28... f3 {[%clk 0:00:10.3]} 29.
Qc2 {[%clk 0:00:20.7]} 29... Bxc1 {[%clk 0:00:09.6]} 30. Rxc1 {[%clk 0:00:20.9]}
30... Bg4 {[%clk 0:00:10.3]} 31. Nxb7 {[%clk 0:00:20.1]} 31... Rf7 {[%clk
0:00:09.2]} 32. h3 {[%clk 0:00:19.7]} 32... fxg2+ {[%clk 0:00:06.6]} 33. Bxg2
{[%clk 0:00:21.6]} 33... Bd7 {[%clk 0:00:05.8]} 34. Na5 {[%clk 0:00:21.4]} 34...
Raf8 {[%clk 0:00:05.1]} 35. Rg1 {[%clk 0:00:22.5]} 35... Rf2 {[%clk 0:00:05.8]}
36. Qd3 {[%clk 0:00:23.1]} 36... Kh8 {[%clk 0:00:05.6]} 37. Qd4+ {[%clk
0:00:23.9]} 37... Kh7 {[%clk 0:00:06]} 38. b4 {[%clk 0:00:23]} 38... Nxb4 {[%clk
0:00:06.1]} 39. e5 {[%clk 0:00:23]} 39... Nc2 {[%clk 0:00:06.7]} 40. Qxa7 {[%clk
0:00:22]} 40... R8f7 {[%clk 0:00:05.4]} 41. e6 {[%clk 0:00:22.6]} 41... Bxb5
{[%clk 0:00:05.5]} 42. axb5 {[%clk 0:00:22.4]} 42... Rg7 {[%clk 0:00:05.7]} 43.
Qxf2 {[%clk 0:00:21]} 43... Qd3 {[%clk 0:00:05.9]} 44. Qf4 {[%clk 0:00:19.5]}
44... Ne3 {[%clk 0:00:06.4]} 45. Be4+ {[%clk 0:00:20.2]} 1-0

[Event "*** Titled Tuesday 3|2 Blitz"]
[Site "Chess.com"]
[Date "2016.05.03"]
[Round "8"]
[White "Hikaru"]
[Black "yarosavich"]
[Result "1-0"]
[WhiteElo "2825"]
[BlackElo "2543"]
[TimeControl "180+2"]
[EndTime "18:41:04 PDT"]
[Termination "Hikaru won by resignation"]

1. d4 {[%clk 0:03:01.9]} 1... d5 {[%clk 0:03:00.6]} 2. c4 {[%clk 0:03:02.3]}
2... e6 {[%clk 0:03:01.7]} 3. Nf3 {[%clk 0:03:02.5]} 3... Nf6 {[%clk 0:03:02.3]}
4. Qc2 {[%clk 0:03:03.7]} 4... c6 {[%clk 0:02:57.1]} 5. Bg5 {[%clk 0:03:04.4]}
5... Nbd7 {[%clk 0:02:57]} 6. Nbd2 {[%clk 0:03:05.5]} 6... h6 {[%clk 0:02:55.9]}
7. Bh4 {[%clk 0:03:04.4]} 7... Be7 {[%clk 0:02:53.1]} 8. e3 {[%clk 0:03:05.3]}
8... O-O {[%clk 0:02:52.2]} 9. Bd3 {[%clk 0:03:06.5]} 9... dxc4 {[%clk
0:02:49.8]} 10. Qxc4 {[%clk 0:03:03.5]} 10... Nd5 {[%clk 0:02:41.5]} 11. Bxe7
{[%clk 0:02:59]} 11... Qxe7 {[%clk 0:02:42.4]} 12. O-O {[%clk 0:03:00.9]} 12...
e5 {[%clk 0:02:35.7]} 13. Rfe1 {[%clk 0:02:55.5]} 13... N5f6 {[%clk 0:02:05.5]}
14. Qc2 {[%clk 0:02:52.1]} 14... Re8 {[%clk 0:02:01.8]} 15. dxe5 {[%clk
0:02:48.9]} 15... Nxe5 {[%clk 0:02:02.3]} 16. Nxe5 {[%clk 0:02:50.8]} 16... Qxe5
{[%clk 0:02:03.3]} 17. Nf3 {[%clk 0:02:52.7]} 17... Qh5 {[%clk 0:01:57.5]} 18.
Rac1 {[%clk 0:02:50.7]} 18... Be6 {[%clk 0:01:51]} 19. Nd4 {[%clk 0:02:50.1]}
19... Rad8 {[%clk 0:01:37.3]} 20. Be2 {[%clk 0:02:44.6]} 20... Qa5 {[%clk
0:01:28.7]} 21. a3 {[%clk 0:02:44.4]} 21... Bd5 {[%clk 0:01:27.6]} 22. Bf1
{[%clk 0:02:42]} 22... Be4 {[%clk 0:01:21.8]} 23. Qc3 {[%clk 0:02:40.4]} 23...
Qxc3 {[%clk 0:01:22]} 24. Rxc3 {[%clk 0:02:42.3]} 24... Bxg2 {[%clk 0:01:12.3]}
25. Bxg2 {[%clk 0:02:05]} 25... Rxd4 {[%clk 0:01:12.7]} 26. Rb3 {[%clk
0:02:06.3]} 26... Re7 {[%clk 0:01:07.8]} 27. Rxb7 {[%clk 0:02:01.8]} 27... Rxb7
{[%clk 0:01:09.7]} 28. exd4 {[%clk 0:02:02.7]} 28... Rxb2 {[%clk 0:01:09.6]} 29.
Bxc6 {[%clk 0:02:04]} 29... Ra2 {[%clk 0:00:48.2]} 30. a4 {[%clk 0:01:56.6]}
30... Kf8 {[%clk 0:00:39.5]} 31. Re5 {[%clk 0:01:30.2]} 31... g5 {[%clk
0:00:40.9]} 32. Ra5 {[%clk 0:01:24.1]} 32... Nh5 {[%clk 0:00:42.1]} 33. h4
{[%clk 0:01:18.1]} 33... Nf4 {[%clk 0:00:35.7]} 34. hxg5 {[%clk 0:01:19]} 34...
hxg5 {[%clk 0:00:37.3]} 35. Rxa7 {[%clk 0:01:19.3]} 35... Ne2+ {[%clk
0:00:33.1]} 36. Kg2 {[%clk 0:01:19.1]} 36... Nxd4 {[%clk 0:00:34.1]} 37. Rxf7+
{[%clk 0:01:06.2]} 37... Kxf7 {[%clk 0:00:35.4]} 38. Bd5+ {[%clk 0:01:07.7]}
38... Kf6 {[%clk 0:00:33.9]} 39. Bxa2 {[%clk 0:01:09.6]} 39... Nc6 {[%clk
0:00:23.4]} 40. Bd5 {[%clk 0:01:09.9]} 40... Na5 {[%clk 0:00:24.7]} 41. Kg3
{[%clk 0:01:10.4]} 41... Ke5 {[%clk 0:00:26.2]} 42. Bg8 {[%clk 0:01:09.5]} 42...
Nc6 {[%clk 0:00:22.8]} 43. Kg4 {[%clk 0:01:09.8]} 43... Ke4 {[%clk 0:00:19.5]}
44. Kxg5 {[%clk 0:01:07.3]} 44... Kf3 {[%clk 0:00:18]} 45. Bd5+ {[%clk
0:00:06.1]} 1-0

[Event "*** Titled Tuesday 3|2 Blitz"]
[Site "Chess.com"]
[Date "2016.05.03"]
[Round "8"]
[White "1random"]
[Black "PowerThinking2650"]
[Result "0-1"]
[WhiteElo "2038"]
[BlackElo "2177"]
[TimeControl "180+2"]
[EndTime "18:41:18 PDT"]
[Termination "PowerThinking2650 won by checkmate"]

1. e4 {[%clk 0:02:58.1]} 1... e5 {[%clk 0:03:00.2]} 2. Nf3 {[%clk 0:02:58.5]}
2... Nc6 {[%clk 0:03:01]} 3. Bc4 {[%clk 0:02:57.4]} 3... Nf6 {[%clk 0:03:01.3]}
4. d3 {[%clk 0:02:54.2]} 4... Be7 {[%clk 0:03:01.5]} 5. O-O {[%clk 0:02:52.9]}
5... O-O {[%clk 0:03:01]} 6. c3 {[%clk 0:02:52.8]} 6... d6 {[%clk 0:03:01.5]} 7.
Bb3 {[%clk 0:02:54]} 7... Na5 {[%clk 0:03:01.9]} 8. Bc2 {[%clk 0:02:54.8]} 8...
c5 {[%clk 0:03:02.5]} 9. Re1 {[%clk 0:02:55.7]} 9... Re8 {[%clk 0:03:02.6]} 10.
Nbd2 {[%clk 0:02:56.9]} 10... Bf8 {[%clk 0:03:01.8]} 11. Nf1 {[%clk 0:02:58.1]}
11... Nc6 {[%clk 0:02:56.7]} 12. Ng3 {[%clk 0:02:57.4]} 12... g6 {[%clk
0:02:53.7]} 13. Be3 {[%clk 0:02:40.2]} 13... Bg7 {[%clk 0:02:52.2]} 14. Qd2
{[%clk 0:02:41.1]} 14... b6 {[%clk 0:02:49.6]} 15. h3 {[%clk 0:02:41.2]} 15...
Bb7 {[%clk 0:02:49.5]} 16. Bh6 {[%clk 0:02:37.5]} 16... d5 {[%clk 0:02:47.5]}
17. Nf5 {[%clk 0:01:58.3]} 17... Bh8 {[%clk 0:02:40.9]} 18. exd5 {[%clk
0:01:48.5]} 18... Nxd5 {[%clk 0:02:36.3]} 19. Ne3 {[%clk 0:01:44.4]} 19... Nf4
{[%clk 0:02:32.2]} 20. Ng4 {[%clk 0:01:41.7]} 20... f5 {[%clk 0:02:05.9]} 21.
Qxf4 {[%clk 0:01:33.2]} 21... Nd4 {[%clk 0:00:51.5]} 22. Ngxe5 {[%clk
0:01:31.2]} 22... Nxc2 {[%clk 0:00:45.8]} 23. Rac1 {[%clk 0:00:12.4]} 23... Nxe1
{[%clk 0:00:45.7]} 24. Rxe1 {[%clk 0:00:14.3]} 24... Qd5 {[%clk 0:00:45.3]} 25.
Qc4 {[%clk 0:00:13.3]} 25... Qxc4 {[%clk 0:00:45.3]} 26. dxc4 {[%clk 0:00:15.2]}
26... Bxf3 {[%clk 0:00:43.6]} 27. Nxf3 {[%clk 0:00:15.8]} 27... Rxe1+ {[%clk
0:00:43.3]} 28. Nxe1 {[%clk 0:00:17.7]} 28... Rd8 {[%clk 0:00:42.1]} 29. Kf1
{[%clk 0:00:12.6]} 29... Rd1 {[%clk 0:00:42.1]} 30. Ke2 {[%clk 0:00:13.8]} 30...
Rb1 {[%clk 0:00:41.9]} 31. b3 {[%clk 0:00:14.7]} 31... Bxc3 {[%clk 0:00:41.9]}
32. Nd3 {[%clk 0:00:15.2]} 32... Bd4 {[%clk 0:00:42.2]} 33. f3 {[%clk
0:00:07.9]} 33... Rg1 {[%clk 0:00:41.4]} 34. g4 {[%clk 0:00:07.7]} 34... Rg2+
{[%clk 0:00:41.8]} 35. Kd1 {[%clk 0:00:09]} 35... Rxa2 {[%clk 0:00:41.4]} 36.
gxf5 {[%clk 0:00:08.8]} 36... gxf5 {[%clk 0:00:42.1]} 37. Bd2 {[%clk 0:00:10.4]}
37... Kf7 {[%clk 0:00:41.4]} 38. Nf4 {[%clk 0:00:10.2]} 38... a6 {[%clk
0:00:40.3]} 39. Nd5 {[%clk 0:00:11.5]} 39... b5 {[%clk 0:00:40.5]} 40. cxb5
{[%clk 0:00:13]} 40... axb5 {[%clk 0:00:40.8]} 41. Nc7 {[%clk 0:00:14.9]} 41...
b4 {[%clk 0:00:40.7]} 42. Nb5 {[%clk 0:00:11.6]} 42... Rb2 {[%clk 0:00:35.2]}
43. Nxd4 {[%clk 0:00:10.2]} 43... cxd4 {[%clk 0:00:35.6]} 44. Bxb4 {[%clk
0:00:11.8]} 44... Rxb3 {[%clk 0:00:36.6]} 45. Bc5 {[%clk 0:00:13.3]} 45... Rxf3
{[%clk 0:00:36.5]} 46. Bxd4 {[%clk 0:00:13.2]} 46... Rd3+ {[%clk 0:00:36.6]} 47.
Ke2 {[%clk 0:00:14.2]} 47... Rxd4 {[%clk 0:00:37.2]} 48. Ke3 {[%clk 0:00:16.1]}
48... Re4+ {[%clk 0:00:38.4]} 49. Kf3 {[%clk 0:00:18]} 49... Ke6 {[%clk
0:00:40]} 50. Kg3 {[%clk 0:00:19.9]} 50... Ke5 {[%clk 0:00:41.7]} 51. h4 {[%clk
0:00:21.6]} 51... f4+ {[%clk 0:00:43.2]} 52. Kg4 {[%clk 0:00:21.5]} 52... Re3
{[%clk 0:00:44.2]} 53. Kh5 {[%clk 0:00:20.8]} 53... f3 {[%clk 0:00:44.8]} 54.
Kh6 {[%clk 0:00:22.7]} 54... f2 {[%clk 0:00:45.9]} 55. h5 {[%clk 0:00:24.6]}
55... f1=Q {[%clk 0:00:46.3]} 56. Kg7 {[%clk 0:00:26.5]} 56... Qf6+ {[%clk
0:00:46.8]} 57. Kg8 {[%clk 0:00:27]} 57... Rg3+ {[%clk 0:00:47.3]} 58. Kxh7
{[%clk 0:00:19.6]} 58... Qg7# {[%clk 0:00:47.4]} 0-1

[Event "*** Titled Tuesday 3|2 Blitz"]
[Site "Chess.com"]
[Date "2016.05.03"]
[Round "8"]
[White "MinhGTrAn"]
[Black "EltajSafarli"]
[Result "1/2-1/2"]
[WhiteElo "2646"]
[BlackElo "2721"]
[TimeControl "180+2"]
[EndTime "18:42:18 PDT"]
[Termination "Game drawn by agreement"]

1. d4 {[%clk 0:03:01.9]} 1... Nf6 {[%clk 0:03:00]} 2. c4 {[%clk 0:03:01.2]} 2...
e6 {[%clk 0:03:00.6]} 3. Nc3 {[%clk 0:03:01.2]} 3... Bb4 {[%clk 0:02:59]} 4. e3
{[%clk 0:03:02.6]} 4... O-O {[%clk 0:02:54.9]} 5. Ne2 {[%clk 0:03:04]} 5... Re8
{[%clk 0:02:55.5]} 6. a3 {[%clk 0:03:04.4]} 6... Bf8 {[%clk 0:02:56.9]} 7. Ng3
{[%clk 0:03:05]} 7... d5 {[%clk 0:02:57.3]} 8. Bd3 {[%clk 0:03:01.3]} 8... c5
{[%clk 0:02:51.4]} 9. dxc5 {[%clk 0:02:58.1]} 9... Bxc5 {[%clk 0:02:48]} 10. O-O
{[%clk 0:02:56.8]} 10... dxc4 {[%clk 0:02:42.7]} 11. Bxc4 {[%clk 0:02:58.7]}
11... Qc7 {[%clk 0:02:42.7]} 12. Qe2 {[%clk 0:02:58.5]} 12... a6 {[%clk
0:02:41]} 13. b4 {[%clk 0:02:58.6]} 13... Be7 {[%clk 0:02:37.1]} 14. Bb2 {[%clk
0:03:00]} 14... Bd7 {[%clk 0:02:34.8]} 15. Rac1 {[%clk 0:02:59.4]} 15... Bc6
{[%clk 0:02:31.9]} 16. Bd3 {[%clk 0:02:53.6]} 16... Nbd7 {[%clk 0:02:29]} 17.
Nce4 {[%clk 0:02:54.4]} 17... Rac8 {[%clk 0:02:24.5]} 18. Nh5 {[%clk 0:02:40]}
18... Qd8 {[%clk 0:02:17.3]} 19. Nexf6+ {[%clk 0:02:33.3]} 19... Bxf6 {[%clk
0:02:11.1]} 20. Nxf6+ {[%clk 0:02:32.6]} 20... Nxf6 {[%clk 0:02:13]} 21. Rfd1
{[%clk 0:02:33.5]} 21... Qe7 {[%clk 0:02:10.7]} 22. Be5 {[%clk 0:02:13.2]} 22...
Red8 {[%clk 0:02:06.7]} 23. h3 {[%clk 0:02:10.8]} 23... Ne8 {[%clk 0:02:02]} 24.
Qg4 {[%clk 0:01:58]} 24... g6 {[%clk 0:01:57]} 25. Qg3 {[%clk 0:01:43.4]} 25...
f6 {[%clk 0:01:54.3]} 26. Bd4 {[%clk 0:01:41.1]} 26... Ba4 {[%clk 0:01:50.6]}
27. Re1 {[%clk 0:01:37.3]} 27... Rxc1 {[%clk 0:01:42.7]} 28. Rxc1 {[%clk
0:01:39.2]} 28... Qd7 {[%clk 0:01:44.6]} 29. f4 {[%clk 0:01:33.1]} 29... Bc6
{[%clk 0:01:45.4]} 30. h4 {[%clk 0:01:26.5]} 30... Ng7 {[%clk 0:01:40.6]} 31.
Rc5 {[%clk 0:01:13.6]} 31... Rf8 {[%clk 0:01:33.9]} 32. h5 {[%clk 0:01:12.6]}
32... b6 {[%clk 0:01:30.3]} 33. Rxc6 {[%clk 0:01:09.3]} 33... Qxc6 {[%clk
0:01:29.6]} 34. hxg6 {[%clk 0:01:11.2]} 34... h5 {[%clk 0:01:25.6]} 35. Qh3
{[%clk 0:01:03]} 35... Qc1+ {[%clk 0:01:16.8]} 36. Kh2 {[%clk 0:01:02.9]} 36...
b5 {[%clk 0:01:12.9]} 37. Bc5 {[%clk 0:01:00]} 37... Rd8 {[%clk 0:01:10.5]} 38.
Qh4 {[%clk 0:00:51.6]} 38... Qc3 {[%clk 0:01:11.5]} 39. Be2 {[%clk 0:00:45.6]}
39... Rd7 {[%clk 0:01:02.8]} 40. Bf3 {[%clk 0:00:41.5]} 40... Nf5 {[%clk
0:00:53.1]} 41. Qxh5 {[%clk 0:00:40.5]} 41... Qe1 {[%clk 0:00:51.4]} 42. Bg4
{[%clk 0:00:33.3]} 42... Qg3+ {[%clk 0:00:48.5]} 43. Kg1 {[%clk 0:00:31.7]}
43... Rg7 {[%clk 0:00:42.8]} 44. Bxf5 {[%clk 0:00:28.8]} 44... exf5 {[%clk
0:00:44.7]} 45. Qxf5 {[%clk 0:00:25.2]} 45... Rxg6 {[%clk 0:00:45.6]} 46. Qd5+
{[%clk 0:00:24.1]} 46... Kh7 {[%clk 0:00:46.9]} 47. Kf1 {[%clk 0:00:21.6]} 47...
Qg4 {[%clk 0:00:45]} 48. Bf8 {[%clk 0:00:18]} 48... Kh8 {[%clk 0:00:39.6]} 49.
Bc5 {[%clk 0:00:16.1]} 49... Rg7 {[%clk 0:00:39.1]} 50. Bd4 {[%clk 0:00:12.9]}
50... Qh4 {[%clk 0:00:36.7]} 51. Qc6 {[%clk 0:00:12.2]} 51... Qh1+ {[%clk
0:00:29]} 52. Kf2 {[%clk 0:00:13.1]} 52... Qh4+ {[%clk 0:00:30.6]} 53. Kf1
{[%clk 0:00:14.5]} 53... Rg6 {[%clk 0:00:28.4]} 54. Qa8+ {[%clk 0:00:12.4]}
54... Kh7 {[%clk 0:00:25.9]} 55. Qd5 {[%clk 0:00:13.7]} 55... Kh6 {[%clk
0:00:21.3]} 56. Bc5 {[%clk 0:00:12.2]} 56... Qg4 {[%clk 0:00:19.3]} 57. Bf8+
{[%clk 0:00:11.4]} 57... Kh7 {[%clk 0:00:19.1]} 58. Qf7+ {[%clk 0:00:12.7]}
58... Kh8 {[%clk 0:00:20.1]} 59. Qd5 {[%clk 0:00:13.1]} 1/2-1/2

[Event "*** Titled Tuesday 3|2 Blitz"]
[Site "Chess.com"]
[Date "2016.05.03"]
[Round "8"]
[White "NaziPaiki"]
[Black "Zlatan56"]
[Result "1-0"]
[WhiteElo "2700"]
[BlackElo "2597"]
[TimeControl "180+2"]
[EndTime "18:42:47 PDT"]
[Termination "NaziPaiki won on time"]

1. e4 {[%clk 0:03:01.9]} 1... d5 {[%clk 0:02:58.6]} 2. exd5 {[%clk 0:03:02.2]}
2... Qxd5 {[%clk 0:03:00.5]} 3. Nc3 {[%clk 0:03:02.4]} 3... Qa5 {[%clk
0:03:01.3]} 4. Nf3 {[%clk 0:03:03.3]} 4... Nf6 {[%clk 0:03:01.6]} 5. Bc4 {[%clk
0:03:00.9]} 5... Bg4 {[%clk 0:03:02.1]} 6. h3 {[%clk 0:03:00.5]} 6... Bh5 {[%clk
0:02:49.9]} 7. O-O {[%clk 0:03:01]} 7... Nc6 {[%clk 0:02:48.8]} 8. Be2 {[%clk
0:02:47.3]} 8... O-O-O {[%clk 0:02:48.6]} 9. d3 {[%clk 0:02:46.8]} 9... e5
{[%clk 0:02:42.7]} 10. Be3 {[%clk 0:02:43.5]} 10... e4 {[%clk 0:02:37.8]} 11.
Nd2 {[%clk 0:02:36.4]} 11... exd3 {[%clk 0:02:32.5]} 12. cxd3 {[%clk 0:02:37.5]}
12... Bxe2 {[%clk 0:02:22.9]} 13. Qxe2 {[%clk 0:02:38.6]} 13... Qh5 {[%clk
0:02:23.4]} 14. Nf3 {[%clk 0:02:35.7]} 14... Bd6 {[%clk 0:02:19.2]} 15. d4
{[%clk 0:02:31.9]} 15... Rhe8 {[%clk 0:02:15.7]} 16. Qc4 {[%clk 0:02:32.6]}
16... h6 {[%clk 0:01:55]} 17. a3 {[%clk 0:02:25]} 17... Kb8 {[%clk 0:01:43.6]}
18. b4 {[%clk 0:02:20.8]} 18... g5 {[%clk 0:01:41.2]} 19. d5 {[%clk 0:02:15.4]}
19... Ne5 {[%clk 0:01:38.9]} 20. Nxe5 {[%clk 0:02:14.8]} 20... Bxe5 {[%clk
0:01:39]} 21. Nb5 {[%clk 0:01:47.6]} 21... a6 {[%clk 0:01:34.4]} 22. d6 {[%clk
0:01:48.6]} 22... Bxd6 {[%clk 0:01:33]} 23. Nxd6 {[%clk 0:01:43.3]} 23... Rxd6
{[%clk 0:01:33.2]} 24. Rfe1 {[%clk 0:01:44.7]} 24... Re4 {[%clk 0:00:58.4]} 25.
Qc2 {[%clk 0:01:36.2]} 25... g4 {[%clk 0:00:54.9]} 26. Rad1 {[%clk 0:01:27]}
26... Rxd1 {[%clk 0:00:26.1]} 27. Rxd1 {[%clk 0:01:27.4]} 27... Re8 {[%clk
0:00:26.7]} 28. hxg4 {[%clk 0:01:24.7]} 28... Nxg4 {[%clk 0:00:25.4]} 29. Bf4
{[%clk 0:01:26]} 29... Rc8 {[%clk 0:00:17.9]} 30. Rd7 {[%clk 0:01:17.3]} 30...
Ne5 {[%clk 0:00:16.3]} 31. Re7 {[%clk 0:01:15.5]} 31... Nc6 {[%clk 0:00:15.7]}
32. Rd7 {[%clk 0:01:11.3]} 32... Qg4 {[%clk 0:00:16.6]} 33. Qd2 {[%clk
0:01:07.5]} 33... h5 {[%clk 0:00:15.2]} 34. Rxf7 {[%clk 0:01:04.5]} 34... h4
{[%clk 0:00:16.1]} 35. Qd7 {[%clk 0:01:01.1]} 35... Qxd7 {[%clk 0:00:08.7]} 36.
Rxd7 {[%clk 0:01:02.3]} 36... Rf8 {[%clk 0:00:07.1]} 37. Bxc7+ {[%clk
0:00:58.4]} 37... Kc8 {[%clk 0:00:07.8]} 38. Rh7 {[%clk 0:01:00.1]} 38... h3
{[%clk 0:00:06.9]} 39. gxh3 {[%clk 0:00:59.8]} 39... Rf3 {[%clk 0:00:05.5]} 40.
Kg2 {[%clk 0:01:00.7]} 40... Rxa3 {[%clk 0:00:05.5]} 41. Bd6 {[%clk 0:01:02]}
41... Rd3 {[%clk 0:00:06.2]} 42. Bc5 {[%clk 0:01:02.2]} 42... b6 {[%clk
0:00:05.9]} 43. Bxb6 {[%clk 0:01:01.9]} 43... Nxb4 {[%clk 0:00:07]} 44. h4
{[%clk 0:01:02.4]} 44... Nd5 {[%clk 0:00:08.1]} 45. Bc5 {[%clk 0:00:58.2]} 45...
Nf4+ {[%clk 0:00:08.9]} 46. Kh2 {[%clk 0:00:57.4]} 46... Rh3+ {[%clk 0:00:08.8]}
47. Kg1 {[%clk 0:00:57.2]} 47... Ne2+ {[%clk 0:00:09.8]} 48. Kf1 {[%clk
0:00:56.5]} 48... Nf4 {[%clk 0:00:11.5]} 49. Kg1 {[%clk 0:00:41.3]} 49... Ne2+
{[%clk 0:00:12.3]} 50. Kf1 {[%clk 0:00:41.7]} 50... Nf4 {[%clk 0:00:14.2]} 51.
f3 {[%clk 0:00:35.7]} 51... Rxf3+ {[%clk 0:00:14.2]} 52. Kg1 {[%clk 0:00:36.9]}
52... Rh3 {[%clk 0:00:14.2]} 53. Bd6 {[%clk 0:00:34.3]} 53... Ne6 {[%clk
0:00:11.4]} 54. Kf2 {[%clk 0:00:33.5]} 54... a5 {[%clk 0:00:11.5]} 55. Bg3
{[%clk 0:00:32.2]} 55... Rh1 {[%clk 0:00:11]} 56. Ra7 {[%clk 0:00:32.1]} 56...
Ra1 {[%clk 0:00:09.8]} 57. Be5 {[%clk 0:00:28.8]} 57... Ra4 {[%clk 0:00:09.5]}
58. Kg3 {[%clk 0:00:27.4]} 58... Kd8 {[%clk 0:00:05.3]} 59. h5 {[%clk 0:00:26]}
59... Ke8 {[%clk 0:00:03.6]} 60. h6 {[%clk 0:00:27.2]} 60... Ng5 {[%clk
0:00:04.7]} 61. Bf4 {[%clk 0:00:26.1]} 61... Ne4+ {[%clk 0:00:03.8]} 62. Kf3
{[%clk 0:00:27]} 62... Nf6 {[%clk 0:00:04.5]} 63. Bg5 {[%clk 0:00:26.1]} 63...
Ra3+ {[%clk 0:00:04.3]} 64. Kf4 {[%clk 0:00:27.1]} 64... Rh3 {[%clk 0:00:04.1]}
65. Kf5 {[%clk 0:00:26.1]} 65... Ng8 {[%clk 0:00:03.6]} 66. h7 {[%clk
0:00:24.4]} 66... Nh6+ {[%clk 0:00:04.3]} 67. Bxh6 {[%clk 0:00:24.1]} 67... Rxh6
{[%clk 0:00:04.6]} 68. h8=Q+ {[%clk 0:00:24.9]} 1-0